bitfinex/quotes_BTCUSD_20240703
["timestamp","ask_amount","ask_price","bid_price","bid_amount"]
[1720048970421,1.259556,60420.0,60419.0,0.1672]
[1720048970603,1.38895492,60420.0,60419.0,0.1672]
[1720048971767,1.29395492,60420.0,60419.0,0.1672]
[1720048971973,1.38895492,60420.0,60419.0,0.1672]
[1720048973855,1.38902586,60420.0,60419.0,0.1672]
[1720048977062,1.38894076,60420.0,60419.0,0.1672]
[1720048977293,1.38894045,60420.0,60419.0,0.1672]
[1720048977434,1.354556,60420.0,60419.0,0.1672]
[1720048977805,1.38897047,60420.0,60419.0,0.1672]
[1720048980167,1.354556,60420.0,60419.0,0.1672]
[1720048980373,1.38899953,60420.0,60419.0,0.1672]
[1720048980539,1.38899346,60420.0,60419.0,0.1672]
[1720048982739,1.38901743,60420.0,60419.0,0.1672]
[1720048984508,0.40017249,60420.0,60419.0,0.2272]
[1720048984621,0.82618849,60420.0,60419.0,0.2272]
[1720048984820,0.82618849,60420.0,60419.0,0.23421421]
[1720048985043,0.82618849,60420.0,60419.0,0.2272]
[1720048985044,0.72698543,60420.0,60419.0,0.2272]
[1720048985243,1.15720383,60420.0,60419.0,0.2272]
[1720048985535,1.15720994,60420.0,60419.0,0.2272]
[1720048985760,1.0579774,60420.0,60419.0,0.2272]
[1720048986363,0.1354374,60420.0,60419.0,0.2272]
[1720048986570,0.20984747,60420.0,60419.0,0.2272]
[1720048986749,0.20984747,60420.0,60419.0,0.23394364]
[1720048986966,0.1354374,60420.0,60419.0,0.23394364]
[1720048987390,0.20984747,60420.0,60419.0,0.23394364]
[1720048988826,0.21007766,60420.0,60419.0,0.23394364]
[1720048989286,0.101,60420.0,60419.0,0.23394364]
[1720048989491,0.21008597,60420.0,60419.0,0.23394364]
[1720048989695,0.23489509,60420.0,60419.0,0.23394364]
[1720048989899,0.30116663,60420.0,60419.0,0.23394364]
[1720048990222,0.40040309,60420.0,60419.0,0.23394364]
[1720048990427,0.49540309,60420.0,60419.0,0.23394364]
[1720048991367,0.39616663,60420.0,60419.0,0.23394364]
[1720048991964,0.39616362,60420.0,60419.0,0.23394364]
[1720048993357,0.5202092,60420.0,60419.0,0.23394364]
[1720048994160,0.72717962,60420.0,60419.0,0.23394364]
[1720048994631,0.72717962,60420.0,60419.0,0.2272]
[1720048995142,0.72738828,60420.0,60419.0,0.2272]
[1720048996407,1.05840428,60420.0,60419.0,0.2272]
[1720048998514,1.05805903,60420.0,60419.0,0.2272]
[1720048999251,1.20706767,60420.0,60419.0,0.2272]
[1720048999465,1.05805903,60420.0,60419.0,0.2272]
[1720048999616,1.20706767,60420.0,60419.0,0.2272]
[1720049001357,1.01106767,60420.0,60419.0,0.2272]
[1720049001557,0.92254,60420.0,60419.0,0.2272]
[1720049001759,1.10607847,60420.0,60419.0,0.2272]
[1720049001957,0.9569434,60420.0,60419.0,0.228113]
[1720049002285,1.10691104,60420.0,60419.0,0.228113]
[1720049002675,1.10691104,60420.0,60419.0,0.168113]
[1720049002827,1.10691104,60420.0,60419.0,0.091713]
[1720049002828,1.28879014,60420.0,60419.0,0.091713]
[1720049003029,1.28879014,60420.0,60419.0,0.000913]
[1720049003301,1.28879014,60420.0,60419.0,0.002913]
[1720049003503,1.38879014,60420.0,60419.0,0.002913]
[1720049003784,1.38879014,60420.0,60419.0,0.005913]
[1720049004331,1.38879014,60420.0,60419.0,0.002913]
[1720049004526,1.39179014,60420.0,60419.0,0.003913]
[1720049004757,1.39211844,60420.0,60419.0,0.003913]
[1720049005167,1.39211857,60420.0,60419.0,0.003913]
[1720049005384,1.39211857,60420.0,60419.0,0.001913]
[1720049005583,1.39311857,60420.0,60419.0,0.001913]
[1720049005788,1.39211857,60420.0,60419.0,0.001913]
[1720049006233,1.39311857,60420.0,60419.0,0.002913]
[1720049006447,1.88443337,60420.0,60419.0,0.002913]
[1720049007931,1.8497008,60420.0,60419.0,0.002913]
[1720049008136,1.88438681,60420.0,60419.0,0.002913]
[1720049011135,1.8497008,60420.0,60419.0,0.002913]
[1720049011358,1.88433151,60420.0,60419.0,0.002913]
[1720049011998,1.88333151,60420.0,60419.0,0.001913]
[1720049012238,1.88333151,60420.0,60419.0,0.002913]
[1720049012239,1.88433151,60420.0,60419.0,0.002913]
[1720049012570,1.88033151,60420.0,60419.0,0.000913]
[1720049012776,1.88133151,60420.0,60419.0,0.001913]
[1720049012978,1.88133151,60420.0,60419.0,0.000913]
[1720049013377,1.88133151,60420.0,60419.0,0.001913]
[1720049013378,1.88233151,60420.0,60419.0,0.001913]
[1720049013979,1.88533151,60420.0,60419.0,0.002913]
[1720049014243,1.8507008,60420.0,60419.0,0.002913]
[1720049014522,1.8477008,60420.0,60419.0,0.001913]
[1720049014694,1.88551592,60420.0,60419.0,0.001913]
[1720049015098,1.88551818,60420.0,60419.0,0.001913]
[1720049017620,1.8507008,60420.0,60419.0,0.001913]
[1720049017827,1.88565522,60420.0,60419.0,0.001913]
[1720049021008,1.88555156,60420.0,60419.0,0.001913]
[1720049024055,1.8507008,60420.0,60419.0,0.001913]
[1720049024257,1.88558071,60420.0,60419.0,0.001913]
[1720049027500,1.885522,60420.0,60419.0,0.001913]
[1720049027859,1.8507008,60420.0,60419.0,0.001913]
[1720049028106,1.8855454,60420.0,60419.0,0.001913]
[1720049031325,1.8825454,60420.0,60419.0,0.001913]
[1720049031760,1.8855454,60420.0,60419.0,0.001913]
[1720049032115,1.8825454,60420.0,60419.0,0.001913]
[1720049032552,1.8855454,60420.0,60419.0,0.001913]
[1720049033801,1.88556249,60420.0,60419.0,0.001913]
[1720049037169,1.88559865,60420.0,60419.0,0.001913]
[1720049037651,2.05330975,60420.0,60419.0,0.001913]
[1720049037881,2.05030975,60420.0,60419.0,0.001913]
[1720049038330,2.05330975,60420.0,60419.0,0.001913]
[1720049039336,2.05030975,60420.0,60419.0,0.095013]
[1720049040422,2.05048139,60420.0,60419.0,0.095013]
[1720049040664,2.05348139,60420.0,60419.0,0.095013]
[1720049040897,2.05349191,60420.0,60419.0,0.095013]
[1720049041118,2.05049191,60420.0,60419.0,0.095013]
[1720049041329,2.04849191,60420.0,60419.0,0.094013]
[1720049041555,2.05249191,60420.0,60419.0,0.095013]
[1720049041765,2.05149191,60420.0,60419.0,0.094013]
[1720049042002,2.04849191,60420.0,60419.0,0.094013]
[1720049042211,2.04949191,60420.0,60419.0,0.095013]
[1720049042666,2.05249191,60420.0,60419.0,0.095013]
[1720049044751,1.88470214,60420.0,60419.0,0.095013]
[1720049045940,1.88491779,60420.0,60419.0,0.095013]
[1720049046494,1.78991779,60420.0,60419.0,0.095013]
[1720049046693,1.88491779,60420.0,60419.0,0.095013]
[1720049046870,1.88191779,60420.0,60419.0,0.095013]
[1720049047886,1.88491779,60420.0,60419.0,0.095013]
[1720049048633,1.88191779,60420.0,60419.0,0.095013]
[1720049048845,1.88491779,60420.0,60419.0,0.095013]
[1720049049277,1.88503138,60420.0,60419.0,0.095013]
[1720049052481,1.88494936,60420.0,60419.0,0.095013]
[1720049055469,1.8497008,60420.0,60419.0,0.095013]
[1720049055711,1.88447094,60420.0,60419.0,0.095013]
[1720049055911,1.88447385,60420.0,60419.0,0.095013]
[1720049058724,1.88461799,60420.0,60419.0,0.095013]
[1720049061873,1.8497008,60420.0,60419.0,0.095013]
[1720049062044,1.88466918,60420.0,60419.0,0.095013]
[1720049062772,1.78966918,60420.0,60419.0,0.095013]
[1720049063091,1.45865318,60420.0,60419.0,0.095013]
[1720049063291,1.45865318,60420.0,60419.0,0.30766882]
[1720049063292,0.30530638,60420.0,60419.0,0.30766882]
[1720049063506,0.03979838,60420.0,60419.0,0.30766882]
[1720049063647,0.03979838,60420.0,60419.0,0.31761908]
[1720049064854,0.20530638,60420.0,60419.0,0.31761908]
[1720049065053,0.20567708,60420.0,60419.0,0.31761908]
[1720049065457,0.20167708,60420.0,60419.0,0.31661908]
[1720049065677,0.20161616,60420.0,60419.0,0.23646326]
[1720049065866,0.20161616,60420.0,60419.0,0.23946326]
[1720049066081,0.166338,60420.0,60419.0,0.23946326]
[1720049066280,0.290586,60420.0,60419.0,0.23946326]
[1720049066498,0.290586,60420.0,60419.0,0.24146326]
[1720049067114,0.166338,60420.0,60419.0,0.23946326]
[1720049067326,0.166338,60420.0,60419.0,0.24646326]
[1720049067520,0.290586,60420.0,60419.0,0.24346326]
[1720049067745,0.290586,60420.0,60419.0,0.24946326]
[1720049068148,0.166338,60420.0,60419.0,0.24946326]
[1720049068372,0.29056174,60420.0,60419.0,0.24946326]
[1720049069152,0.166338,60420.0,60419.0,0.24946326]
[1720049071982,0.00083,60420.0,60419.0,0.24946326]
[1720049072226,0.10016042,60420.0,60419.0,0.24946326]
[1720049072455,0.00083,60420.0,60419.0,0.24946326]
[1720049072872,0.10015911,60420.0,60419.0,0.24946326]
[1720049074510,0.10014654,60420.0,60419.0,0.24946326]
[1720049074731,0.00083,60420.0,60419.0,0.24946326]
[1720049074957,0.10014667,60420.0,60419.0,0.24946326]
[1720049076160,0.00083,60420.0,60419.0,0.24946326]
[1720049077362,0.00083,60420.0,60419.0,0.24246326]
[1720049077584,0.00083,60420.0,60419.0,0.23646326]
[1720049077821,0.07530533,60420.0,60419.0,0.24546326]
[1720049078025,0.07530533,60420.0,60419.0,0.25346326]
[1720049078648,0.07530214,60420.0,60419.0,0.25346326]
[1720049080804,0.07530214,60420.0,60419.0,0.41897326]
[1720049081213,0.07529699,60420.0,60419.0,0.41897326]
[1720049082371,0.07529699,60420.0,60419.0,0.25346326]
[1720049082823,0.07529699,60420.0,60419.0,0.41897326]
[1720049083062,0.07529699,60420.0,60419.0,0.44897326]
[1720049083277,0.07529699,60420.0,60419.0,0.41897326]
[1720049084605,0.07529295,60420.0,60419.0,0.41897326]
[1720049085529,0.07529295,60420.0,60419.0,0.44897326]
[1720049086184,0.00083,60420.0,60419.0,0.41897326]
[1720049086597,0.00083,60420.0,60419.0,0.25346326]
[1720049090330,0.07529177,60420.0,60419.0,0.25346326]
[1720049090879,0.07529465,60420.0,60419.0,0.25346326]
[1720049091554,0.07529641,60420.0,60419.0,0.25346326]
[1720049091685,0.00083,60420.0,60419.0,0.25346326]
[1720049092227,0.036248,60420.0,60419.0,0.25346326]
[1720049093260,0.11071441,60420.0,60419.0,0.41897326]
[1720049094024,0.11068103,60420.0,60419.0,0.25346326]
[1720049094420,0.11068147,60420.0,60419.0,0.25346326]
[1720049095620,0.2083572,60422.0,60420.0,0.1672]
[1720049095818,0.3033572,60422.0,60421.0,0.0903]
[1720049096067,0.3033572,60422.0,60421.0,0.10042467]
[1720049096268,0.3033572,60422.0,60421.0,0.16042467]
[1720049097035,0.3033572,60422.0,60421.0,0.24392467]
[1720049097238,0.260503,60422.0,60421.0,0.24392467]
[1720049098292,0.095,60422.0,60421.0,0.24392467]
[1720049100148,0.095,60422.0,60421.0,0.25092467]
[1720049101584,0.28966596,60423.0,60422.0,0.06]
[1720049101790,0.48466596,60423.0,60422.0,0.16062937]
[1720049102529,0.81566496,60423.0,60422.0,0.16062937]
[1720049102904,0.81566496,60423.0,60422.0,0.16562937]
[1720049103232,0.691499,60423.0,60422.0,0.16562937]
[1720049103645,0.72250447,60423.0,60422.0,0.16562937]
[1720049104221,0.72250447,60423.0,60422.0,0.16962937]
[1720049106280,0.691499,60423.0,60422.0,0.16962937]
[1720049106488,0.72220304,60423.0,60422.0,0.16962937]
[1720049108752,0.62720304,60423.0,60422.0,0.16962937]
[1720049109310,0.6272038,60423.0,60422.0,0.16962937]
[1720049112479,0.62725675,60423.0,60422.0,0.16962937]
[1720049115784,0.62722775,60423.0,60422.0,0.16962937]
[1720049116145,0.77649327,60423.0,60422.0,0.16962937]
[1720049118945,0.596499,60423.0,60422.0,0.16962937]
[1720049119146,0.80731957,60423.0,60422.0,0.16962937]
[1720049119267,0.62727492,60423.0,60422.0,0.10962937]
[1720049119469,0.62727492,60423.0,60422.0,0.16962937]
[1720049120937,0.77654394,60423.0,60422.0,0.16962937]
[1720049122241,0.77637762,60423.0,60422.0,0.16962937]
[1720049125309,0.596499,60423.0,60422.0,0.16962937]
[1720049125447,0.77645146,60423.0,60422.0,0.16962937]
[1720049125853,0.62716986,60423.0,60422.0,0.16962937]
[1720049126945,0.44545246,60423.0,60422.0,0.16962937]
[1720049127190,0.44545246,60423.0,60422.0,0.24672937]
[1720049127191,0.13067086,60423.0,60422.0,0.24672937]
[1720049127580,0.13067086,60423.0,60422.0,0.24764237]
[1720049128144,0.03067086,60423.0,60422.0,0.44645417]
[1720049128385,0.02084062,60426.0,60425.0,0.556482]
[1720049128386,0.00083,60426.0,60425.0,0.556482]
[1720049128588,0.00083,60426.0,60425.0,0.721582]
[1720049128792,0.00083,60426.0,60425.0,0.73226208]
[1720049129549,0.10027437,60426.0,60425.0,0.73226208]
[1720049129749,0.00083,60426.0,60425.0,1.09425008]
[1720049129882,0.10027471,60426.0,60425.0,1.09425008]
[1720049130301,0.10027471,60426.0,60425.0,1.09525008]
[1720049130499,0.00083,60426.0,60425.0,1.09525008]
[1720049130678,0.00083,60426.0,60425.0,0.23778008]
[1720049130866,0.29066449,60426.0,60425.0,0.15968008]
[1720049131082,0.38566449,60426.0,60425.0,0.15968008]
[1720049131286,0.38566449,60426.0,60425.0,0.16668008]
[1720049131487,0.22017349,60426.0,60425.0,0.16568008]
[1720049131784,0.22010654,60426.0,60425.0,0.17368008]
[1720049133244,0.12510654,60426.0,60425.0,0.17368008]
[1720049134655,0.12508662,60426.0,60425.0,0.17368008]
[1720049135914,0.00083,60426.0,60425.0,0.17368008]
[1720049136117,0.00083,60426.0,60425.0,0.25038008]
[1720049137430,0.10021981,60426.0,60425.0,0.25038008]
[1720049138080,0.10021983,60426.0,60425.0,0.25038008]
[1720049141330,0.00083,60426.0,60425.0,0.25038008]
[1720049141465,0.09987396,60426.0,60425.0,0.25038008]
[1720049141926,0.09987202,60426.0,60425.0,0.25038008]
[1720049142126,0.09987202,60426.0,60425.0,0.41587408]
[1720049142531,0.09987202,60426.0,60425.0,0.44587408]
[1720049142737,0.09987202,60426.0,60425.0,0.41587408]
[1720049145440,0.00049811,60426.0,60425.0,0.41587408]
[1720049145848,0.09987202,60426.0,60425.0,0.41587408]
[1720049146048,0.09957202,60426.0,60425.0,0.41587408]
[1720049146477,0.00019811,60426.0,60425.0,0.41587408]
[1720049146676,0.09957202,60426.0,60425.0,0.25038008]
[1720049146935,0.00019811,60426.0,60425.0,0.25038008]
[1720049147142,0.09957202,60426.0,60425.0,0.25038008]
[1720049149303,0.0991965,60426.0,60425.0,0.25038008]
[1720049150997,0.29052026,60428.0,60427.0,0.06]
[1720049151202,0.32035616,60428.0,60427.0,0.06]
[1720049151526,0.32035616,60428.0,60427.0,0.07065863]
[1720049151527,0.65132816,60428.0,60427.0,0.07065863]
[1720049151854,0.65132816,60428.0,60427.0,0.06]
[1720049152061,0.65132816,60428.0,60427.0,0.065]
[1720049152372,0.166316,60428.0,60427.0,0.07565863]
[1720049152814,0.166316,60428.0,60427.0,0.24515863]
[1720049154068,0.166316,60428.0,60427.0,0.23615863]
[1720049154265,0.166316,60428.0,60427.0,0.24415863]
[1720049154670,0.19567209,60428.0,60427.0,0.24415863]
[1720049155183,0.00083,60428.0,60427.0,0.24315863]
[1720049155338,0.03022563,60428.0,60427.0,0.24315863]
[1720049156347,0.03022563,60428.0,60427.0,0.23615863]
[1720049156551,0.03022563,60428.0,60427.0,0.25315863]
[1720049156772,0.03022563,60428.0,60427.0,0.24515863]
[1720049157180,0.03022563,60428.0,60427.0,0.24415863]
[1720049157459,0.03026525,60428.0,60427.0,0.24415863]
[1720049157791,0.03026525,60428.0,60427.0,0.25315863]
[1720049159092,0.03006525,60428.0,60427.0,0.25315863]
[1720049160378,0.1294322,60428.0,60427.0,0.25315863]
[1720049160584,0.02998469,60428.0,60427.0,0.25315863]
[1720049160995,0.12935356,60428.0,60427.0,0.25315863]
[1720049161570,0.12935356,60428.0,60427.0,0.24415863]
[1720049162812,0.12935356,60428.0,60427.0,0.24615863]
[1720049163125,0.12935073,60428.0,60427.0,0.25615863]
[1720049163498,0.02997583,60428.0,60427.0,0.25615863]
[1720049166156,0.00063,60428.0,60427.0,0.25615863]
[1720049166352,0.02999561,60428.0,60427.0,0.25615863]
[1720049166580,0.00063,60428.0,60427.0,0.25615863]
[1720049166778,0.15421959,60428.0,60427.0,0.25615863]
[1720049169329,0.15425517,60428.0,60427.0,0.25615863]
[1720049170532,0.02999205,60428.0,60427.0,0.25615863]
[1720049172502,0.02991894,60428.0,60427.0,0.25615863]
[1720049173382,0.19540494,60428.0,60427.0,0.25615863]
[1720049174359,0.02991894,60428.0,60427.0,0.25615863]
[1720049175600,0.00063,60428.0,60427.0,0.25615863]
[1720049175801,0.02994251,60428.0,60427.0,0.25615863]
[1720049178301,0.00063,60428.0,60427.0,0.25615863]
[1720049178592,0.02981837,60428.0,60427.0,0.25615863]
[1720049178793,0.00063,60428.0,60427.0,0.25615863]
[1720049178999,0.029819,60428.0,60427.0,0.25615863]
[1720049179409,0.02981943,60428.0,60427.0,0.25615863]
[1720049180189,0.19530543,60428.0,60427.0,0.25615863]
[1720049181915,0.166116,60428.0,60427.0,0.25615863]
[1720049182276,0.19508806,60428.0,60427.0,0.25615863]
[1720049185364,0.19501073,60428.0,60427.0,0.25615863]
[1720049188114,0.095,60430.0,60427.0,0.25615863]
[1720049188425,0.591443,60430.0,60429.0,0.06]
[1720049188630,0.61728447,60430.0,60429.0,0.07065611]
[1720049189664,0.61728447,60430.0,60429.0,0.07765611]
[1720049190034,0.61728447,60430.0,60429.0,0.08565611]
[1720049191683,0.591443,60430.0,60429.0,0.08565611]
[1720049191887,0.61730575,60430.0,60429.0,0.08565611]
[1720049193449,0.61813575,60430.0,60429.0,0.08565611]
[1720049194833,0.592273,60430.0,60429.0,0.08565611]
[1720049195012,0.61811777,60430.0,60429.0,0.08565611]
[1720049195213,0.592273,60430.0,60429.0,0.08565611]
[1720049195422,0.61811736,60430.0,60429.0,0.08565611]
[1720049197102,0.52311736,60430.0,60429.0,0.08565611]
[1720049197554,0.20619646,60430.0,60429.0,0.08565611]
[1720049197759,0.53715946,60430.0,60429.0,0.08565611]
[1720049198113,0.53716609,60430.0,60429.0,0.08565611]
[1720049204825,0.86812552,60430.0,60429.0,0.08565611]
[1720049205030,0.86812552,60430.0,60429.0,0.075]
[1720049205178,0.86812551,60430.0,60429.0,0.075]
[1720049206076,1.01738877,60430.0,60429.0,0.075]
[1720049207769,0.99154208,60430.0,60429.0,0.075]
[1720049207971,1.01746239,60430.0,60429.0,0.075]
[1720049211125,1.01745954,60430.0,60429.0,0.075]
[1720049212097,0.86819841,60430.0,60429.0,0.075]
[1720049212267,1.01745954,60430.0,60429.0,0.067]
[1720049212473,1.01745954,60430.0,60429.0,0.06]
[1720049212673,1.01745954,60430.0,60429.0,0.064]
[1720049212926,1.01745954,60430.0,60429.0,0.06]
[1720049213337,1.01745954,60430.0,60429.0,0.064]
[1720049213742,1.01745954,60430.0,60429.0,0.069]
[1720049214125,0.8422781,60430.0,60429.0,0.064]
[1720049214327,1.01683316,60430.0,60429.0,0.069]
[1720049217360,1.01677208,60430.0,60429.0,0.069]
[1720049217998,1.01680342,60430.0,60429.0,0.069]
[1720049218710,1.52947272,60430.0,60429.0,0.009]
[1720049219350,1.69734742,60430.0,60429.0,0.009]
[1720049219593,1.69734742,60430.0,60429.0,0.005]
[1720049220002,1.53047272,60430.0,60429.0,0.005]
[1720049220437,1.158402,60428.0,60427.0,0.000913]
[1720049220789,1.253402,60428.0,60427.0,0.000913]
[1720049220970,1.28246379,60428.0,60427.0,0.000913]
[1720049222862,1.253402,60428.0,60427.0,0.000913]
[1720049222992,1.2825051,60428.0,60427.0,0.000913]
[1720049223399,1.2835051,60428.0,60427.0,0.000913]
[1720049223607,1.2845051,60428.0,60427.0,0.000913]
[1720049226048,1.28413193,60428.0,60427.0,0.000913]
[1720049229125,1.255402,60428.0,60427.0,0.000913]
[1720049229335,1.28419167,60428.0,60427.0,0.000913]
[1720049229559,1.255402,60428.0,60427.0,0.000913]
[1720049229948,1.28419167,60428.0,60427.0,0.000913]
[1720049232330,1.28413111,60428.0,60427.0,0.000913]
[1720049234243,1.18913111,60428.0,60427.0,0.000913]
[1720049234367,1.28413111,60428.0,60427.0,0.000913]
[1720049235001,1.18913111,60428.0,60427.0,0.000913]
[1720049235224,1.28413111,60428.0,60427.0,0.000913]
[1720049235445,1.255402,60428.0,60427.0,0.000913]
[1720049235669,1.28396204,60428.0,60427.0,0.000913]
[1720049238706,1.28396358,60428.0,60427.0,0.000913]
[1720049238930,1.77523438,60428.0,60427.0,0.000913]
[1720049239145,1.87523438,60428.0,60427.0,0.000913]
[1720049241773,1.87555176,60428.0,60427.0,0.000913]
[1720049242197,1.8446728,60428.0,60427.0,0.000913]
[1720049242395,1.8735206,60428.0,60427.0,0.000913]
[1720049242599,1.8755206,60428.0,60427.0,0.002913]
[1720049244940,1.87562489,60428.0,60427.0,0.002913]
[1720049248154,1.8466728,60428.0,60427.0,0.002913]
[1720049248281,1.8756356,60428.0,60427.0,0.002913]
[1720049251419,1.87562881,60428.0,60427.0,0.002913]
[1720049254523,1.8466728,60428.0,60427.0,0.002913]
[1720049254894,1.87560436,60428.0,60427.0,0.002913]
[1720049255222,1.78060334,60428.0,60427.0,0.002913]
[1720049255629,1.87560334,60428.0,60427.0,0.002913]
[1720049255807,1.87560334,60428.0,60427.0,0.00128596]
[1720049256240,1.15844,60426.0,60425.0,0.0991]
[1720049256454,1.6916856,60426.0,60425.0,0.0991]
[1720049257689,1.6946856,60426.0,60425.0,0.1001]
[1720049257896,1.76102849,60426.0,60425.0,0.1001]
[1720049258346,1.61199841,60426.0,60425.0,0.1001]
[1720049258860,1.61499841,60426.0,60425.0,0.1001]
[1720049261813,1.63452668,60426.0,60425.0,0.1001]
[1720049262030,1.63152668,60426.0,60425.0,0.1001]
[1720049262395,1.63452668,60426.0,60425.0,0.1001]
[1720049263056,1.63452668,60426.0,60425.0,0.0991]
[1720049263228,1.63152668,60426.0,60425.0,0.0991]
[1720049263429,1.63452668,60426.0,60425.0,0.0991]
[1720049264408,1.63465574,60426.0,60425.0,0.0991]
[1720049267069,1.158479,60424.0,60423.0,0.1758]
[1720049267285,1.28756367,60424.0,60423.0,0.1758]
[1720049267697,1.28732649,60424.0,60423.0,0.1758]
[1720049268081,1.28732659,60424.0,60423.0,0.1758]
[1720049268703,1.28932659,60424.0,60423.0,0.1758]
[1720049269678,1.29232659,60424.0,60423.0,0.1758]
[1720049270821,1.29238541,60424.0,60423.0,0.1758]
[1720049274007,1.2923892,60424.0,60423.0,0.1758]
[1720049275840,1.2873892,60424.0,60423.0,0.1758]
[1720049276261,1.2903892,60424.0,60423.0,0.1758]
[1720049276464,1.2873892,60424.0,60423.0,0.1758]
[1720049276869,1.2923892,60424.0,60423.0,0.1758]
[1720049277092,1.263479,60424.0,60423.0,0.1758]
[1720049277227,1.29241063,60424.0,60423.0,0.1758]
[1720049277436,1.38741063,60424.0,60423.0,0.1758]
[1720049278278,1.38541063,60424.0,60423.0,0.1758]
[1720049278656,1.38741063,60424.0,60423.0,0.1758]
[1720049280277,1.358479,60424.0,60423.0,0.1758]
[1720049280509,1.38750598,60424.0,60423.0,0.1758]
[1720049280822,1.358479,60424.0,60423.0,0.1758]
[1720049281001,1.38754552,60424.0,60423.0,0.1758]
[1720049282831,1.38761816,60424.0,60423.0,0.1758]
[1720049283824,1.38760675,60424.0,60423.0,0.1758]
[1720049285953,1.38760285,60424.0,60423.0,0.1758]
[1720049287376,1.38760285,60424.0,60423.0,0.2358]
[1720049287377,1.29260285,60424.0,60423.0,0.2358]
[1720049287573,0.63061485,60424.0,60423.0,0.2358]
[1720049287781,0.63061485,60424.0,60423.0,0.24669234]
[1720049287974,0.96160885,60424.0,60423.0,0.24669234]
[1720049288185,1.11086893,60424.0,60423.0,0.2358]
[1720049288900,0.77987493,60424.0,60423.0,0.2358]
[1720049289248,0.77520909,60424.0,60423.0,0.2358]
[1720049289383,0.77520909,60424.0,60423.0,0.2388]
[1720049290086,0.77520909,60424.0,60423.0,0.2408]
[1720049290505,0.62596726,60424.0,60423.0,0.2408]
[1720049291269,0.95696126,60424.0,60423.0,0.2408]
[1720049292311,0.927485,60424.0,60423.0,0.2408]
[1720049292646,0.95698892,60424.0,60423.0,0.2408]
[1720049292808,0.95702131,60424.0,60423.0,0.2408]
[1720049293411,1.05202131,60424.0,60423.0,0.2408]
[1720049293606,0.72102731,60424.0,60423.0,0.2408]
[1720049293816,0.72102731,60424.0,60423.0,0.25198532]
[1720049294427,1.05202131,60424.0,60423.0,0.2408]
[1720049295486,1.05193987,60424.0,60423.0,0.2408]
[1720049295682,1.022485,60424.0,60423.0,0.2408]
[1720049295830,1.05206434,60424.0,60423.0,0.2408]
[1720049296175,0.72107034,60424.0,60423.0,0.2408]
[1720049298611,0.691491,60424.0,60423.0,0.2408]
[1720049298825,0.72105543,60424.0,60423.0,0.2408]
[1720049305242,0.72091324,60424.0,60423.0,0.2408]
[1720049305673,0.691491,60424.0,60423.0,0.2408]
[1720049305887,0.72097021,60424.0,60423.0,0.2408]
[1720049307149,0.62597021,60424.0,60423.0,0.2408]
[1720049307348,0.72097021,60424.0,60423.0,0.2408]
[1720049307548,0.72097021,60424.0,60423.0,0.25197879]
[1720049308293,0.72086688,60424.0,60423.0,0.25197879]
[1720049311379,0.22437588,60424.0,60423.0,0.25197879]
[1720049311756,0.22437588,60424.0,60423.0,0.45197879]
[1720049312435,0.72086688,60424.0,60423.0,0.45197879]
[1720049314759,0.72091093,60424.0,60423.0,0.45197879]
[1720049315531,0.720992,60424.0,60423.0,0.45197879]
[1720049317896,0.691491,60424.0,60423.0,0.45197879]
[1720049318102,0.62594703,60424.0,60423.0,0.45197879]
[1720049318366,0.72094703,60424.0,60423.0,0.45197879]
[1720049318490,0.72094742,60424.0,60423.0,0.45197879]
[1720049320981,0.691491,60424.0,60423.0,0.45197879]
[1720049321232,0.72102931,60424.0,60423.0,0.45197879]
[1720049323194,0.72102931,60424.0,60423.0,0.45289179]
[1720049323400,0.72185931,60424.0,60423.0,0.45289179]
[1720049327332,0.692321,60424.0,60423.0,0.45289179]
[1720049327527,0.72196648,60424.0,60423.0,0.45289179]
[1720049330635,0.692321,60424.0,60423.0,0.45289179]
[1720049330835,0.72191766,60424.0,60423.0,0.45289179]
[1720049331158,0.692321,60424.0,60423.0,0.45289179]
[1720049331360,0.72191751,60424.0,60423.0,0.45289179]
[1720049332546,0.87113239,60424.0,60423.0,0.45289179]
[1720049332776,0.87113239,60424.0,60423.0,0.44882896]
[1720049333748,0.692321,60424.0,60423.0,0.44882896]
[1720049334112,0.87126889,60424.0,60423.0,0.44882896]
[1720049334245,0.8712693,60424.0,60423.0,0.44882896]
[1720049336606,1.05299078,60424.0,60423.0,0.21302896]
[1720049337019,1.05336918,60424.0,60423.0,0.21659047]
[1720049337310,1.05336918,60424.0,60423.0,0.21359047]
[1720049337678,1.05336918,60424.0,60423.0,0.21159047]
[1720049339094,1.38436318,60424.0,60423.0,0.21159047]
[1720049340208,1.354309,60424.0,60423.0,0.21159047]
[1720049340422,1.38440342,60424.0,60423.0,0.21159047]
[1720049341775,1.28940342,60424.0,60423.0,0.21159047]
[1720049342062,1.38440342,60424.0,60423.0,0.21159047]
[1720049342647,1.38440342,60424.0,60423.0,0.27159047]
[1720049342648,1.38439742,60424.0,60423.0,0.27159047]
[1720049342866,1.38439742,60424.0,60423.0,0.35979047]
[1720049342867,1.05340342,60424.0,60423.0,0.35979047]
[1720049343075,1.023315,60424.0,60423.0,0.43469047]
[1720049343273,1.0534003,60424.0,60423.0,0.43469047]
[1720049343829,1.2026021,60424.0,60423.0,0.43469047]
[1720049345811,1.20244633,60424.0,60423.0,0.43469047]
[1720049346007,1.2024351,60424.0,60423.0,0.43469047]
[1720049346779,1.2024351,60424.0,60423.0,0.43769047]
[1720049347191,1.20243503,60424.0,60423.0,0.43769047]
[1720049347398,1.20243503,60424.0,60423.0,0.43969047]
[1720049348958,1.2022156,60424.0,60423.0,0.43969047]
[1720049352223,1.023315,60424.0,60423.0,0.43969047]
[1720049352403,1.20231966,60424.0,60423.0,0.43969047]
[1720049355479,1.17251551,60424.0,60423.0,0.43969047]
[1720049355635,1.05300812,60424.0,60423.0,0.43969047]
[1720049355846,1.17251857,60424.0,60423.0,0.43969047]
[1720049356017,1.20231245,60424.0,60423.0,0.43969047]
[1720049358635,1.17252284,60424.0,60423.0,0.43969047]
[1720049358833,1.20238994,60424.0,60423.0,0.43969047]
[1720049359466,0.77639594,60424.0,60423.0,0.43969047]
[1720049359682,0.6271881,60424.0,60423.0,0.43969047]
[1720049360189,0.62753986,60424.0,60423.0,0.43969047]
[1720049361879,0.62750897,60424.0,60423.0,0.43969047]
[1720049365119,0.597321,60424.0,60423.0,0.43969047]
[1720049365348,0.62755885,60424.0,60423.0,0.43969047]
[1720049368233,0.597321,60424.0,60423.0,0.43969047]
[1720049368470,0.62737937,60424.0,60423.0,0.43969047]